bitfinex/quotes_ETHUSD_20251108
["timestamp","ask_amount","ask_price","bid_price","bid_amount"]
[1762565742678,0.002,3433.1,3433.0,0.3789]
[1762565742932,0.002,3433.1,3432.5,2.91425285]
[1762565743130,0.002,3433.1,3432.8,2.91307368]
[1762565743413,0.002,3433.1,3433.0,3.29180416]
[1762565744229,0.002,3433.1,3433.0,0.3789]
[1762565745030,0.002,3433.1,3433.0,3.29180416]
[1762565745216,0.002,3433.1,3433.0,0.3789]
[1762565745623,0.002,3433.1,3433.0,3.29180416]
[1762565745921,0.002,3433.1,3433.0,0.99938761]
[1762565747354,0.002,3433.1,3433.0,0.62048761]
[1762565747660,0.002,3433.1,3432.6,0.43702528]
[1762565747959,0.002,3433.1,3433.0,3.29180416]
[1762565748308,0.002,3433.1,3433.0,3.67070416]
[1762565748510,0.002,3433.1,3433.0,3.81630416]
[1762565748925,0.002,3433.1,3433.0,5.07601616]
[1762565749141,0.002,3433.5,3433.4,4.1722768]
[1762565749341,0.002,3433.5,3433.4,4.9300768]
[1762565749731,0.002,3433.5,3433.4,5.0756768]
[1762565754449,0.002,3433.5,3433.4,4.6967768]
[1762565758049,0.002,3433.5,3433.4,5.0756768]
[1762565758251,0.002,3433.5,3433.4,5.88424006]
[1762565758425,0.002,3433.5,3433.4,5.50534006]
[1762565759650,0.002,3433.5,3433.4,5.88424006]
[1762565760367,0.002,3433.5,3433.4,5.9133657]
[1762565760551,0.002,3433.5,3433.4,5.88424006]
[1762565761885,0.002,3433.5,3433.4,5.50534006]
[1762565762059,0.002,3433.5,3433.4,5.9133657]
[1762565762256,0.002,3433.8,3433.7,2.91231033]
[1762565762456,0.002,3433.8,3433.7,5.92517615]
[1762565762657,0.002,3433.8,3433.7,6.44730947]
[1762565762852,0.002,3433.8,3433.7,6.41818637]
[1762565763884,0.002,3433.8,3433.7,6.04165305]
[1762565764092,0.002,3433.8,3433.7,5.66275305]
[1762565764479,0.002,3433.8,3433.7,6.04165305]
[1762565764798,0.002,3433.8,3433.7,5.28385305]
[1762565764977,0.4907,3433.8,3433.7,3.05791033]
[1762565765176,0.002,3433.8,3433.7,4.69652233]
[1762565766391,0.002,3433.8,3433.7,5.07542233]
[1762565766765,0.002,3433.8,3433.7,4.31762233]
[1762565767371,0.002,3433.8,3433.7,5.50037388]
[1762565770275,0.4907,3433.8,3433.7,4.31762233]
[1762565770667,0.9667,3433.8,3433.7,1.405312]
[1762565770896,0.9667,3433.8,3433.7,3.05791033]
[1762565771099,0.9667,3433.8,3433.6,2.91238442]
[1762565771263,0.002,3433.8,3433.7,2.91231033]
[1762565771462,0.002,3433.8,3433.5,0.1456]
[1762565771657,0.002,3433.8,3433.7,2.91231033]
[1762565771862,0.478,3433.8,3433.7,2.91231033]
[1762565772098,0.9667,3433.8,3433.7,2.91231033]
[1762565772622,0.002,3433.8,3433.7,3.29121033]
[1762565772795,0.002,3433.8,3433.7,3.54723297]
[1762565772984,0.9667,3433.8,3433.7,2.91231033]
[1762565773574,0.4907,3433.8,3433.7,2.91231033]
[1762565773782,0.002,3433.8,3433.7,3.29121033]
[1762565773983,0.002,3433.8,3433.7,3.43681033]
[1762565774283,0.4907,3433.8,3433.7,3.05791033]
[1762565774497,0.002,3433.8,3433.7,3.05791033]
[1762565775072,0.4907,3433.8,3433.7,3.05791033]
[1762565775867,0.002,3433.8,3433.7,3.05791033]
[1762565776073,0.002,3433.8,3433.7,3.6354183]
[1762565776276,0.002,3433.8,3433.7,2.91231033]
[1762565776512,0.002,3433.8,3433.7,3.29121033]
[1762565776718,0.002,3433.8,3433.7,4.58004543]
[1762565776922,0.002,3433.8,3433.7,4.95894543]
[1762565777443,0.002,3434.1,3433.7,4.58004543]
[1762565777664,0.005,3434.9,3434.4,2.91171674]
[1762565777952,0.005,3434.9,3434.4,5.78598457]
[1762565778560,0.005,3434.9,3434.4,6.19148857]
[1762565778856,0.005,3434.9,3434.4,6.16237141]
[1762565779260,0.005,3434.9,3434.8,2.91137766]
[1762565779550,0.005,3434.9,3434.8,6.1248842]
[1762565779706,0.005,3434.9,3434.8,5.71293421]
[1762565781617,1e-08,3434.9,3434.8,6.15399797]
[1762565781811,1e-08,3434.9,3434.8,6.12862289]
[1762565782145,1e-08,3434.9,3434.8,6.54057288]
[1762565782307,1e-08,3434.9,3434.8,6.94607688]
[1762565783311,0.002,3435.6,3435.5,2.91078445]
[1762565783507,0.002,3435.6,3435.5,5.13156265]
[1762565783713,1e-08,3435.9,3435.8,4.95464629]
[1762565784243,1e-08,3435.9,3435.8,5.33354629]
[1762565785940,1e-08,3435.9,3435.8,5.47834629]
[1762565788126,0.1448,3437.4,3435.8,5.47834629]
[1762565788127,0.476,3437.4,3436.8,4.16939542]
[1762565788332,0.476,3437.4,3436.8,4.8773125]
[1762565788525,0.476,3437.4,3436.8,5.0221125]
[1762565789469,0.4937,3436.9,3436.8,5.0221125]
[1762565789772,0.4937,3436.9,3436.8,4.31419542]
[1762565790071,1.1548,3436.9,3436.8,4.31419542]
[1762565790224,1.1548,3436.9,3436.8,1.259712]
[1762565791324,1.1548,3436.9,3435.7,2.91056156]
[1762565791629,0.4614,3436.6,3436.4,1.259712]
[1762565791834,0.87959564,3436.6,3436.4,1.259712]
[1762565792025,0.9645,3436.5,3436.4,1.259712]
[1762565792369,0.9645,3436.5,3436.2,0.1448]
[1762565792526,0.4539,3436.3,3436.2,4.31470349]
[1762565792732,0.4539,3436.3,3435.3,2.91091254]
[1762565793070,0.9419,3436.2,3436.1,4.16998818]
[1762565793220,0.9419,3436.2,3436.1,2.91027618]
[1762565794423,0.9419,3436.2,3435.9,1.259712]
[1762565794679,0.1448,3436.4,3435.8,0.1448]
[1762565794969,0.1448,3436.4,3436.0,4.17006463]
[1762565795127,0.488,3436.3,3436.0,4.17006463]
[1762565795352,0.4539,3436.1,3436.0,4.17006463]
[1762565795984,0.9419,3436.1,3436.0,2.91035263]
[1762565796298,0.9419,3436.1,3435.8,3.05532202]
[1762565796299,0.9419,3436.1,3435.9,2.91044558]
[1762565796471,0.488,3436.0,3435.9,2.91042687]
[1762565796789,0.9419,3436.0,3435.9,2.91042687]
[1762565796947,0.9419,3436.0,3435.9,4.17013887]
[1762565799056,0.4539,3436.0,3435.9,4.17013887]
[1762565799581,0.9419,3436.0,3435.9,4.17013887]
[1762565799886,0.9419,3436.0,3435.9,1.259712]
[1762565800384,0.4539,3436.0,3435.9,4.17015758]
[1762565800686,0.1448,3436.4,3436.3,2.9101068]
[1762565800847,0.6328,3436.4,3436.3,2.9101068]
[1762565801182,1.0867,3436.4,3436.3,2.9101068]
[1762565801560,1.0867,3436.4,3435.9,1.259712]
[1762565801766,0.4575,3436.2,3436.1,2.91022338]
[1762565802075,0.4815,3436.3,3436.1,2.91022338]
[1762565802274,0.4815,3436.5,3436.0,1.259712]
[1762565802477,0.4815,3436.5,3436.0,1.404512]
[1762565802673,0.4575,3436.1,3436.0,3.05515289]
[1762565803118,0.939,3436.1,3436.0,1.404512]
[1762565803427,0.1448,3436.0,3435.1,0.1448]
[1762565803569,0.6549,3435.2,3435.1,4.31560633]
[1762565803770,0.6549,3435.2,3435.1,1.404512]
[1762565804015,1.1364,3435.2,3435.1,1.404512]
[1762565804800,0.6549,3435.2,3435.1,4.3156354]
[1762565805094,0.6263,3435.8,3435.2,1.259712]
[1762565805299,0.6263,3435.8,3435.7,2.91061501]
[1762565805497,1.0838,3435.8,3435.6,2.91066531]
[1762565805710,0.6023,3435.8,3435.6,2.91066531]
[1762565805904,0.939,3435.7,3435.6,1.259712]
[1762565806114,0.939,3435.7,3435.4,1.259712]
[1762565806310,0.4815,3435.6,3435.4,1.259712]
[1762565806489,0.4575,3435.5,3435.4,1.259712]
[1762565806878,0.939,3435.5,3435.4,4.17058118]
[1762565807385,0.939,3435.5,3435.3,1.259712]
[1762565807622,0.4575,3435.3,3435.2,2.91103865]
[1762565808032,0.1448,3435.5,3435.0,0.1448]
[1762565808234,0.1448,3435.5,3435.4,4.17058118]
[1762565808738,0.6023,3435.5,3435.4,4.17058118]
[1762565809833,0.4575,3435.5,3435.4,4.17058118]
[1762565811444,0.4575,3435.5,3435.4,4.17158118]
[1762565811646,0.939,3435.5,3435.4,4.17158118]
[1762565812996,0.939,3435.5,3435.4,1.260712]
[1762565813539,0.939,3435.5,3435.4,4.17158118]
[1762565814238,0.4815,3436.1,3435.9,2.91044318]
[1762565814438,0.939,3436.0,3435.9,2.91044318]
[1762565814749,0.939,3436.0,3435.4,0.001]
[1762565814750,0.4575,3436.0,3435.4,0.001]
[1762565814897,0.002,3436.7,3435.4,0.001]
[1762565814898,0.1974,3435.9,3435.6,2.91069774]
[1762565815105,0.6789,3435.9,3435.6,2.91069774]
[1762565815459,0.6789,3435.9,3435.7,2.91060862]
[1762565815739,0.4815,3435.8,3435.7,2.91060862]
[1762565815948,0.939,3435.8,3435.7,2.91060862]
[1762565817554,0.002,3436.3,3436.0,2.91027802]
[1762565817892,0.002,3436.3,3435.7,0.3789]
[1762565818051,0.4835,3436.3,3435.4,1.260712]
[1762565818250,0.4835,3436.3,3435.7,2.91058666]
[1762565818251,0.4575,3435.8,3435.7,2.91058666]
[1762565818587,0.4575,3435.8,3435.7,4.17032701]
[1762565818882,0.939,3435.8,3435.7,4.17032701]
[1762565820170,0.4575,3435.8,3435.7,4.17032701]
[1762565820474,0.939,3435.8,3435.7,4.17032701]
[1762565821870,0.939,3435.8,3435.7,1.259712]
[1762565822070,0.939,3435.8,3435.7,4.17032701]
[1762565822664,0.939,3435.8,3435.7,1.259712]
[1762565822831,0.939,3435.8,3435.6,2.91066933]
[1762565823041,0.9101,3435.7,3435.4,0.001]
[1762565823238,3.37078445,3435.5,3435.4,0.001]
[1762565823438,2.9111234,3435.1,3435.0,0.001]
[1762565823746,2.9112929,3434.9,3434.7,0.001]
[1762565823949,0.956,3434.9,3434.7,0.001]
[1762565824269,3.8672929,3434.9,3434.7,0.001]
[1762565825447,4.2727969,3434.9,3434.7,0.001]
[1762565825686,5.05979087,3434.9,3434.7,0.001]
[1762565827101,3.31713596,3434.5,3434.4,0.001]
[1762565827254,2.91188631,3434.2,3434.1,0.006]
[1762565827601,2.91239515,3433.6,3433.5,0.301]
[1762565827742,3.55569515,3433.6,3433.5,0.301]
[1762565827946,4.65509447,3433.6,3433.5,0.301]
[1762565828170,5.06059847,3433.6,3433.5,0.301]
[1762565829043,2.14820332,3433.6,3433.5,0.301]
[1762565829251,4.41379915,3433.6,3433.5,0.301]
[1762565830162,1.501404,3433.6,3433.5,0.301]
[1762565830357,4.41379915,3433.6,3433.5,0.301]
[1762565830560,1.501404,3433.6,3433.5,0.301]
[1762565831962,1.0959,3433.6,3433.5,0.301]
[1762565833358,0.4526,3433.9,3433.5,0.301]
[1762565833585,0.1854,3433.9,3433.5,0.301]
[1762565833892,0.6056,3433.6,3433.5,0.301]
[1762565835359,1.0582,3433.6,3433.5,0.301]
[1762565836958,0.1456,3433.6,3433.5,0.301]
[1762565837399,0.1456,3433.6,3433.5,3.21347997]
[1762565837622,0.0454,3434.9,3433.8,2.91222552]
[1762565837623,0.1456,3434.0,3433.8,2.91222552]
[1762565838191,0.1456,3434.0,3433.9,2.91214071]
[1762565838769,0.6056,3434.0,3433.5,0.91370525]
[1762565838989,0.46,3433.6,3433.5,0.301]
[1762565839214,0.6056,3433.6,3433.5,0.301]
[1762565839395,3.97059515,3433.6,3433.5,0.301]
[1762565839559,1.0582,3433.6,3433.5,0.301]
[1762565840393,0.6056,3433.6,3433.5,0.301]
[1762565841033,1.0582,3433.6,3433.5,0.301]
[1762565841238,1.74647301,3433.6,3433.5,0.301]
[1762565842209,1.0582,3433.6,3433.5,0.301]
[1762565842406,0.1456,3433.6,3433.5,0.6819]
[1762565842584,0.1456,3433.6,3433.5,3.21347997]
[1762565842790,0.6056,3433.6,3433.5,0.301]
[1762565843140,1.0582,3433.6,3433.5,0.301]
[1762565843637,1.4552473,3433.6,3433.5,0.301]
[1762565843789,1.0582,3433.6,3433.5,0.301]
[1762565847039,0.1456,3433.6,3433.5,0.6819]
[1762565847738,0.1456,3433.6,3433.5,3.59437997]
[1762565848225,0.1456,3433.6,3433.5,3.21347997]
[1762565848789,0.9126,3433.6,3433.5,0.301]
[1762565849407,0.9126,3433.6,3433.5,3.21347997]
[1762565849612,0.46,3433.6,3433.5,3.21347997]
[1762565849937,0.46,3433.6,3433.5,0.301]
[1762565850426,0.46,3433.6,3433.5,3.21347997]
[1762565852029,0.46,3433.6,3433.5,0.301]
[1762565852523,0.46,3433.6,3433.5,3.21347997]
[1762565853134,0.002,3434.1,3433.6,2.91239515]
[1762565853293,0.1476,3434.1,3434.0,3.29295591]
[1762565854544,0.002,3434.1,3434.0,3.67385591]
[1762565854696,0.002,3434.1,3434.0,4.33245602]
[1762565855836,0.002,3434.1,3434.0,5.21126802]
[1762565856039,0.002,3434.1,3434.0,5.59216802]
[1762565858535,0.002,3434.1,3434.0,5.62128857]
[1762565859506,0.002,3434.1,3434.0,5.59216802]
[1762565859731,0.002,3434.1,3434.0,5.62128857]
[1762565860534,0.002,3434.1,3434.0,5.59216802]
[1762565864561,0.002,3434.1,3434.0,9.38216802]
[1762565865258,0.002,3434.1,3434.0,9.00126802]
[1762565865617,0.002,3434.1,3434.0,9.38316802]
[1762565866043,0.002,3434.1,3434.0,9.52796802]
[1762565868019,0.002,3434.1,3434.0,9.93347202]
[1762565868220,1e-08,3434.5,3434.4,3.29261674]
[1762565868422,1e-08,3434.5,3434.4,5.87567989]
[1762565868720,1e-08,3434.9,3434.8,4.55198966]
[1762565869041,1e-08,3434.9,3434.8,11.14708243]
[1762565869248,1e-08,3434.9,3434.8,11.90437266]
[1762565869616,1e-08,3434.9,3434.8,8.11437266]
[1762565869820,1e-08,3434.9,3434.8,8.86697052]
[1762565870670,1e-08,3434.9,3434.8,6.74121552]
[1762565870975,1e-08,3434.9,3434.8,5.95481152]
[1762565871151,1e-08,3434.9,3434.8,6.33571152]
[1762565872940,1e-08,3434.9,3434.8,5.95481152]
[1762565873578,1e-08,3434.9,3434.8,6.33571152]
[1762565873777,1e-08,3434.9,3434.8,5.95481152]
[1762565875381,1e-08,3434.9,3434.8,9.74481152]
[1762565875758,1e-08,3434.9,3434.8,10.12571152]
[1762565878777,1e-08,3434.9,3434.8,9.74481152]
[1762565879648,1e-08,3434.9,3434.8,10.12571152]
[1762565880650,1e-08,3434.9,3434.8,10.79809956]
[1762565881080,1e-08,3434.9,3434.8,10.91457552]
[1762565881288,1e-08,3434.9,3434.8,14.78784152]
[1762565882058,1e-08,3434.9,3434.8,14.32757552]
[1762565882699,1e-08,3434.9,3434.8,10.91457552]
[1762565883069,1e-08,3434.9,3434.8,14.52468752]
[1762565883264,1e-08,3434.9,3434.8,16.15721156]
[1762565883463,1e-08,3435.6,3435.5,0.3809]
[1762565883805,1e-08,3435.9,3435.8,3.69693429]
[1762565884006,1e-08,3435.9,3435.8,6.13908567]
[1762565884674,1e-08,3436.6,3436.5,0.3809]
[1762565884874,1e-08,3436.6,3436.5,11.72623813]
[1762565885184,0.6434,3438.1,3437.8,2.90883704]
[1762565885386,0.005,3438.9,3437.8,4.95495304]
[1762565885684,0.4591,3438.5,3437.8,4.54944904]
[1762565886181,0.4591,3438.5,3437.8,4.96113308]
[1762565886598,0.4591,3438.8,3437.8,4.57853741]
[1762565886758,0.4591,3438.8,3437.8,5.7058674]
[1762565886965,0.4591,3438.8,3438.7,4.16778772]
[1762565887460,0.4616,3438.8,3438.7,4.16778772]
[1762565887781,0.005,3438.9,3438.8,4.16770315]
[1762565888195,0.4666,3438.9,3438.8,4.16770315]
[1762565889310,0.4666,3438.9,3437.8,0.74642999]
[1762565889311,0.9257,3438.9,3437.8,0.74642999]
[1762565889512,0.9257,3438.9,3437.7,0.1423]
[1762565889513,0.4616,3438.8,3437.7,0.1423]
[1762565889676,0.9207,3438.8,3438.6,1.259712]
[1762565890215,0.9207,3438.7,3438.6,1.259712]
[1762565890510,0.9207,3438.7,3438.6,4.16787229]
[1762565890719,0.9207,3438.7,3438.6,4.31267229]
[1762565893321,0.9207,3438.7,3438.6,0.1448]
[1762565893481,0.9207,3438.7,3438.5,1.259712]
[1762565893681,0.4591,3438.6,3438.5,2.90822039]
[1762565894013,0.4591,3438.6,3438.4,2.90830177]
[1762565894014,0.9207,3438.6,3438.4,2.90830177]
[1762565894311,0.4616,3438.5,3438.3,0.1448]
[1762565894514,0.4591,3438.5,3438.4,2.90832945]
[1762565895217,0.9207,3438.5,3438.4,2.90832945]
[1762565895694,0.9207,3438.5,3438.3,0.1448]
[1762565895886,0.9207,3438.4,3438.3,0.1448]
[1762565896395,0.1448,3438.3,3437.6,2.90899981]
[1762565896594,0.5033,3437.7,3437.6,1.259712]
[1762565896824,0.5033,3437.7,3437.6,4.16871828]
[1762565897030,0.9624,3437.7,3437.6,4.16871828]
[1762565897326,0.9624,3437.7,3437.6,2.90900628]
[1762565897533,0.9624,3437.7,3437.5,0.1448]
[1762565897863,0.9207,3437.6,3437.5,4.3136029]
[1762565898207,0.9207,3437.6,3437.5,1.404512]
[1762565898405,0.9207,3437.6,3437.5,4.3136029]
[1762565899717,0.9207,3437.6,3437.5,1.259712]
[1762565901204,0.9207,3437.6,3437.5,4.1688029]
[1762565901626,0.4616,3437.6,3437.5,4.1688029]
[1762565901853,0.4591,3438.4,3437.5,1.49868654]
[1762565902052,0.4591,3438.4,3438.3,2.90841404]
[1762565902238,0.9207,3438.4,3438.3,2.90841404]
[1762565903466,0.9207,3438.4,3438.2,1.259712]
[1762565903684,0.4591,3438.3,3438.2,2.90849325]
[1762565903974,0.4611,3438.6,3438.5,2.90824487]
[1762565904139,0.9227,3438.6,3438.5,2.90824487]
[1762565904327,0.002,3438.6,3438.5,2.90824487]
[1762565904528,0.4636,3438.6,3438.5,3.48990321]
[1762565904838,0.4636,3438.6,3438.5,2.90824487]
[1762565905560,0.002,3438.6,3438.5,3.28914487]
[1762565906474,0.002,3438.6,3438.5,4.54885687]
[1762565906763,0.002,3438.6,3438.5,4.92975687]
[1762565907636,0.002,3438.6,3438.5,5.33526087]
[1762565907836,0.002,3438.6,3438.5,7.00166135]
[1762565908570,0.002,3438.6,3438.5,7.38751206]
[1762565909081,0.002,3439.1,3439.0,4.16753404]
[1762565909390,1e-08,3439.5,3439.4,3.31298786]
[1762565909535,1e-08,3439.5,3439.4,5.91255283]
[1762565909751,1e-08,3439.5,3439.4,7.07366739]
[1762565910271,1e-08,3439.5,3439.4,6.26932871]
[1762565910431,1e-08,3439.5,3439.4,5.883478]
[1762565910631,1e-08,3439.5,3439.4,6.264378]
[1762565911262,1e-08,3439.5,3439.4,6.65022871]
[1762565911554,1e-08,3439.5,3439.4,6.264378]
[1762565911756,1e-08,3439.5,3439.4,6.409178]
[1762565912751,1e-08,3439.5,3439.4,5.100574]
[1762565912951,1e-08,3439.5,3439.4,3.05228386]
[1762565912952,0.45360001,3439.5,3439.4,3.05228386]
[1762565913152,0.94730001,3439.5,3439.4,2.90748386]
[1762565913383,0.45360001,3439.5,3439.4,2.90748386]
[1762565913784,1e-08,3439.5,3439.4,2.90748386]
[1762565914293,0.45360001,3439.5,3439.4,2.90748386]
[1762565914808,0.94730001,3439.5,3439.4,2.90748386]
[1762565915101,0.94730001,3439.5,3439.3,4.16724828]
[1762565915392,0.9473,3439.4,3439.3,2.9075684]
[1762565915892,0.9473,3439.4,3437.5,0.001]
[1762565916090,3.76676553,3439.2,3437.8,2.90876865]
[1762565916295,0.42604655,3439.1,3438.0,2.90866783]
[1762565916492,2.90783979,3439.0,3438.2,2.90843168]
[1762565916664,0.4536,3438.3,3438.2,2.90849863]
[1762565916865,0.4536,3438.3,3437.7,1.259712]
[1762565917070,0.4536,3438.1,3438.0,4.16837983]
[1762565917487,0.4937,3438.3,3438.1,1.259712]
[1762565917675,0.4937,3438.3,3438.2,4.16821063]
[1762565917967,0.9473,3438.3,3438.2,4.16821063]
[1762565918173,0.9473,3438.3,3438.2,1.259712]
[1762565918551,0.9473,3438.3,3438.2,4.16821063]
[1762565918990,0.4937,3438.6,3438.2,1.259712]
[1762565919172,0.19,3438.9,3438.8,2.90799115]
[1762565919375,0.6436,3438.9,3438.8,2.90799115]
[1762565919579,0.197,3439.9,3439.0,2.90782204]
[1762565919782,0.197,3439.9,3439.3,2.9085684]
[1762565919783,0.49370001,3439.5,3439.3,2.9085684]
[1762565919996,0.49370001,3439.5,3439.4,2.90748386]
[1762565920173,0.4536,3439.4,3439.3,2.9085684]
[1762565920662,0.4536,3439.4,3439.3,0.001]
[1762565920867,0.9473,3439.4,3439.3,0.001]
[1762565921293,0.9473,3439.4,3439.3,2.9085684]
[1762565921495,0.9473,3439.4,3439.3,0.001]
[1762565922401,1e-08,3439.5,3439.4,2.90748386]
[1762565922768,1e-08,3439.5,3439.4,4.45804425]
[1762565923164,1e-08,3439.5,3439.4,4.60284425]
[1762565923487,1e-08,3439.5,3439.4,4.98374425]
[1762565924975,1e-08,3439.5,3439.4,5.36464425]
[1762565925201,1e-08,3439.5,3439.4,5.77014825]
[1762565926065,1e-08,3439.9,3439.8,3.69354976]
[1762565926290,1e-08,3439.9,3439.8,5.77987072]
[1762565926491,1e-08,3439.9,3439.8,6.30557072]
[1762565926698,1e-08,3439.9,3439.8,6.7043381]
[1762565926951,1e-08,3439.9,3439.8,6.30557072]
[1762565927315,1e-08,3439.9,3439.8,6.7043381]
[1762565928863,1e-08,3439.9,3439.8,6.3234381]
[1762565929563,1e-08,3439.9,3439.8,6.7043381]
[1762565931282,1e-08,3439.9,3439.8,6.3234381]
[1762565931483,1e-08,3439.9,3439.8,5.54377072]
[1762565932235,1e-08,3439.9,3439.8,5.13826672]
[1762565932861,1e-08,3439.9,3439.8,6.30557072]
[1762565933037,1e-08,3439.9,3439.8,6.5595381]
[1762565933854,0.005,3440.9,3440.8,4.16601286]
[1762565937575,0.005,3441.9,3441.8,2.90545644]
[1762565937881,0.005,3441.9,3441.3,2.90584651]
[1762565937882,0.005,3441.9,3441.3,2.90579785]
[1762565938090,0.005,3441.9,3441.4,1.259712]
[1762565938305,0.4524,3441.8,3441.4,1.259712]
[1762565938619,0.4524,3441.8,3441.7,4.16525286]
[1762565938771,0.4524,3441.8,3441.7,1.259712]
[1762565938971,0.9174,3441.8,3441.7,1.259712]
[1762565939290,0.9174,3441.8,3441.7,4.16525286]
[1762565940970,0.005,3441.9,3441.8,4.16516844]
[1762565941169,0.005,3441.9,3441.8,4.54606844]
[1762565941577,1e-08,3441.9,3441.8,5.33247244]
[1762565942328,0.47460001,3441.9,3441.8,4.16516844]
[1762565942472,0.47460001,3441.9,3441.8,4.45601683]
[1762565942473,1e-08,3441.9,3441.8,4.45601683]
[1762565943007,1e-08,3441.9,3441.8,4.60081683]
[1762565944471,0.47460001,3441.9,3441.8,4.60081683]
[1762565944672,0.66830001,3441.9,3441.8,4.30996844]
[1762565944901,1.15550001,3441.9,3441.8,4.30996844]
[1762565945104,1.15550001,3441.9,3441.5,1.259712]
[1762565945273,0.68090001,3441.9,3441.8,3.05025644]
[1762565945469,0.19370001,3441.9,3441.8,0.1448]
[1762565945683,0.66830001,3441.9,3441.8,0.1448]
[1762565946114,1e-08,3441.9,3441.8,4.30996844]
[1762565946387,1e-08,3441.9,3441.8,5.03442948]
[1762565946586,1.15550001,3441.9,3441.8,1.404512]
[1762565946789,1e-08,3441.9,3441.8,4.30996844]
[1762565946996,1e-08,3441.9,3441.8,4.69086844]
[1762565947640,1e-08,3441.9,3441.8,5.07176844]
[1762565948413,1e-08,3441.9,3441.8,4.69086844]
[1762565948609,1e-08,3441.9,3441.8,5.48860014]
[1762565949130,1e-08,3441.9,3441.8,5.10770014]
[1762565949334,1e-08,3441.9,3441.8,5.48860014]
[1762565950116,1e-08,3441.9,3441.8,5.86950014]
[1762565950639,1e-08,3441.9,3441.8,6.27500414]
[1762565951957,1e-08,3441.9,3441.8,6.67377152]
[1762565952364,1e-08,3441.9,3441.8,6.27500414]
[1762565953551,1e-08,3441.9,3441.8,5.89410414]
[1762565953757,1e-08,3441.9,3441.8,5.51320414]
[1762565953960,1e-08,3441.9,3441.8,5.10770014]
[1762565954869,0.66830001,3441.9,3441.8,5.10770014]
[1762565955046,1e-08,3441.9,3441.8,5.10770014]
[1762565955240,1e-08,3441.9,3441.8,5.48860014]
[1762565955444,1e-08,3441.9,3441.8,5.48960014]
[1762565955845,0.00200001,3441.9,3441.8,5.48960014]
[1762565956274,0.00200001,3441.9,3441.8,6.27600414]
[1762565957545,0.00200001,3441.9,3441.8,10.06600414]
[1762565958465,0.00200001,3441.9,3441.8,11.43110414]
[1762565958663,0.00200001,3441.9,3441.8,9.68510414]
[1762565959772,0.00200001,3441.9,3441.8,10.06600414]
[1762565960072,1e-08,3442.3,3442.2,2.90511881]
[1762565960230,1e-08,3442.3,3442.2,4.87185109]
[1762565960430,1e-08,3442.3,3442.2,5.01665109]
[1762565961467,1e-08,3442.3,3442.2,5.39755109]
[1762565962845,1e-08,3442.3,3442.2,5.68865109]
[1762565963050,1e-08,3442.3,3442.2,5.01665109]
[1762565963277,1e-08,3442.3,3442.2,8.80665109]
[1762565964972,0.47460001,3442.3,3442.2,8.80665109]
[1762565965159,0.96180001,3442.3,3442.2,8.80665109]
[1762565966342,0.96180001,3442.3,3442.2,4.30963081]
[1762565966840,1e-08,3442.3,3442.2,4.30963081]
[1762565967037,0.47460001,3442.3,3442.2,4.30963081]
[1762565967240,0.96180001,3442.3,3442.2,4.30963081]
[1762565968572,0.96180001,3442.3,3442.2,1.404512]
[1762565968889,0.96180001,3442.3,3441.8,0.001]
[1762565969094,0.4872,3442.2,3442.1,1.259712]
[1762565969385,0.4872,3442.2,3442.0,1.259712]
[1762565969553,0.4746,3442.1,3442.0,2.90528762]
[1762565970090,0.4746,3442.1,3441.9,1.259712]
[1762565970091,0.9618,3442.1,3441.9,2.90533721]
[1762565970252,0.4746,3442.0,3441.8,0.001]
[1762565970454,0.6409,3441.9,3441.8,4.16614606]
[1762565970946,0.6409,3441.9,3441.8,5.28136989]
[1762565971272,1e-08,3442.3,3442.2,4.16483081]
[1762565971472,1e-08,3442.3,3442.2,4.54573081]
[1762565971646,1e-08,3442.3,3442.2,4.16483081]
[1762565973897,1e-08,3442.3,3442.2,4.54573081]
[1762565974227,1e-08,3442.3,3442.2,5.26421501]
[1762565974583,1e-08,3442.3,3442.2,4.88331501]
[1762565976016,0.47600001,3442.3,3442.2,4.88331501]
[1762565976216,1e-08,3442.3,3442.2,5.26421501]
[1762565979413,1e-08,3442.3,3442.2,6.59418639]
[1762565980340,1e-08,3442.3,3442.2,12.12488982]
[1762565983106,1e-08,3442.3,3442.2,11.74398982]
[1762565983621,1e-08,3442.3,3442.2,12.12488982]
[1762565985939,1e-08,3442.3,3442.2,11.74398982]
[1762565986441,1e-08,3442.3,3442.2,12.12488982]
[1762565986937,1e-08,3442.3,3442.2,11.74398982]
[1762565987648,1e-08,3442.3,3442.2,12.12488982]
[1762565988642,1e-08,3442.3,3442.2,13.87088982]
[1762565989525,1e-08,3442.9,3442.8,4.95072852]
[1762565989747,1e-08,3442.9,3442.8,5.35537142]
[1762565990163,0.49990001,3442.9,3442.8,5.35537142]
[1762565990349,1e-08,3442.9,3442.8,5.35537142]
[1762565992823,1e-08,3442.9,3442.8,5.73627142]
[1762565993224,1e-08,3442.9,3442.8,5.35537142]
[1762565993555,0.00200001,3442.9,3442.8,5.73627142]
[1762565995460,0.00200001,3442.9,3442.8,12.04664223]
[1762565995830,0.00200001,3442.9,3442.8,11.66574223]
[1762565999463,0.00200001,3442.9,3442.8,11.81054223]
[1762566001252,0.00200001,3442.9,3442.8,11.41177485]
[1762566001455,0.69720001,3442.9,3442.8,11.03087485]
[1762566001761,1.18140001,3442.9,3442.8,11.03087485]
[1762566001946,0.50190001,3442.9,3442.8,11.03087485]
[1762566002468,0.50190001,3442.9,3442.8,9.55146261]
[1762566002969,0.002,3443.3,3443.2,2.90427509]
[1762566003266,0.005,3443.9,3443.8,4.16348109]
[1762566003766,0.009,3443.9,3443.8,4.16348109]
[1762566005069,0.005,3443.9,3443.8,8.67317228]
[1762566005373,0.005,3443.9,3443.8,8.21477228]
[1762566005582,0.0088,3443.9,3443.8,8.21477228]
[1762566005867,0.0088,3443.9,3443.8,9.30094155]